[Event "Ural District-ch Women 2020"]
[Site "Chelyabinsk"]
[Date "2020.10.04"]
[Round "8.2"]
[White "Mikheeva, Galina"]
[Black "Mironenko, Galina"]
[Result "0-1"]
[ECO "B26"]
[WhiteElo "1901"]
[BlackElo "2100"]
[Annotator "ChessBase"]
[PlyCount "76"]
[EventDate "2020.10.01"]
[EventType "swiss"]
[EventCountry "RUS"]
[SourceTitle "playchess.com"]
[Source "ChessBase"]
[SourceQuality "1"]
[TimeControl "5400+30"]

1. e4 {[%emt 0:00:00]} c5 {[%emt 0:00:00]} 2. Nc3 {[%emt 0:00:00]} Nc6 {[%emt 0:00:00]} 3. g3 {[%emt 0:00:00]} g6 {[%emt 0:00:00]} 4. Bg2 {[%emt 0:00:00]} Bg7 {[%emt 0:00:00]} 5. d3 {[%emt 0:00:01]} d6 {[%emt 0:00:00]} 6. Be3 {[%emt 0:00:06]} Nf6 {[%emt 0:00:04]} 7. h3 {[%emt 0:00:49]} e5 {[%emt 0:00:10]} 8. Nge2 {[%emt 0:02:08]} Nd4 {[%emt 0:00:35]} 9. O-O {[%emt 0:01:50]} O-O {[%emt 0:00:14]} 10. f4 {[%emt 0:04:00]} b5 {[%emt 0:00:08]} 11. fxe5 {[%emt 0:01:46]} dxe5 {[%emt 0:00:38]} 12. Bxd4 {[%emt 0:26:16]} cxd4 {[%emt 0:00:10]} 13. Nxb5 {[%emt 0:00:07]} Qb6 {[%emt 0:00:14]} 14. a4 {[%emt 0:00:44]} Bd7 {[%emt 0:00:10]} 15. Qd2 {[%emt 0:12:01]} Bxb5 {[%emt 0:07:32]} 16. axb5 {[%emt 0:00:15]} Qxb5 {[%emt 0:00:13]} 17. Rfb1 {[%emt 0:04:28]} a5 {[%emt 0:06:35]} 18. c3 {[%emt 0:01:38]} Nd7 {[%emt 0:03:42]} 19. b4 {[%emt 0:10:23]} axb4 {[%emt 0:05:55]} 20. Rxa8 {[%emt 0:02:16]} Rxa8 {[%emt 0:00:23]} 21. cxd4 {[%emt 0:01:30]} exd4 {[%emt 0:11:50]} 22. Rxb4 {[%emt 0:00:07]} Qa5 {[%emt 0:02:27]} 23. Qb2 {[%emt 0:04:14]} Bf8 {[%emt 0:10:22]} 24. Rb5 {[%emt 0:03:07]} Qe1+ {[%emt 0:00:58]} 25. Kh2 {[%emt 0:00:22]} Nc5 {[%emt 0:04:57]} 26. Nxd4 {[%emt 0:04:00]} Bd6 {[%emt 0:17:38]} 27. e5 {[%emt 0:10:09]} Bxe5 {[%emt 0:00:31]} 28. Bxa8 {[%emt 0:00:10]} Qxg3+ {[%emt 0:04:28]} 29. Kh1 {[%emt 0:00:08]} Nxd3 {[%emt 0:03:39]} 30. Qg2 {[%emt 0:01:07]} Nf2+ {[%emt 0:00:34]} 31. Kg1 {[%emt 0:00:32]} Nxh3+ {[%emt 0:00:19]} 32. Kf1 {[%emt 0:00:45]} Qd3+ {[%emt 0:00:25]} 33. Qe2 {[%emt 0:03:46]} Qxd4 {[%emt 0:00:09]} 34. Qc2 {[%emt 0:05:47]} Qg1+ {[%emt 0:03:05]} 35. Ke2 {[%emt 0:00:04]} Qf2+ {[%emt 0:00:49]} 36. Kd1 {[%emt 0:00:44]} Qf1+ {[%emt 0:00:14]} 37. Kd2 {[%emt 0:00:04]} Bf4+ {[%emt 0:00:40]} 38. Kc3 {[%emt 0:00:08]} Qxb5 {[%emt 0:00:18]} 0-1

[Event "Ural District-ch Women 2020"]
[Site "Chelyabinsk"]
[Date "2020.10.04"]
[Round "8.3"]
[White "Baranova, Elizaveta"]
[Black "Mukhina, Jana"]
[Result "0-1"]
[ECO "B50"]
[WhiteElo "1620"]
[BlackElo "2068"]
[Annotator "ChessBase"]
[PlyCount "154"]
[EventDate "2020.10.01"]
[EventType "swiss"]
[EventCountry "RUS"]
[SourceTitle "playchess.com"]
[Source "ChessBase"]
[SourceQuality "1"]
[TimeControl "5400+30"]

1. e4 {[%emt 0:00:00]} c5 {[%emt 0:00:00]} 2. Nf3 {[%emt 0:00:00]} d6 {[%emt 0:00:00]} 3. c3 {[%emt 0:00:00]} Nf6 {[%emt 0:00:00]} 4. Bc4 {[%emt 0:00:00]} Nc6 {[%emt 0:00:02]} 5. Qe2 {[%emt 0:00:03]} Bg4 {[%emt 0:00:30]} 6. O-O {[%emt 0:00:44]} e6 {[%emt 0:14:03]} 7. Bb3 {[%emt 0:03:48]} Be7 {[%emt 0:03:46]} 8. d3 {[%emt 0:04:47]} h6 {[%emt 0:01:38]} 9. Bf4 {[%emt 0:01:06]} O-O {[%emt 0:00:58]} 10. h3 {[%emt 0:00:24]} Bh5 {[%emt 0:00:46]} 11. Nbd2 {[%emt 0:00:22]} a6 {[%emt 0:08:17]} 12. Bc2 {[%emt 0:04:15]} b5 {[%emt 0:01:40]} 13. g4 {[%emt 0:03:24]} Bg6 {[%emt 0:00:11]} 14. d4 {[%emt 0:00:44]} cxd4 {[%emt 0:06:11]} 15. Nxd4 {[%emt 0:00:10]} Nxd4 {[%emt 0:01:46]} 16. cxd4 {[%emt 0:00:04]} d5 {[%emt 0:02:34]} 17. Be5 {[%emt 0:05:13]} Bb4 {[%emt 0:13:01]} 18. Bxf6 {[%emt 0:07:57]} Qxf6 {[%emt 0:01:09]} 19. Nf3 {[%emt 0:02:02]} Qf4 {[%emt 0:03:04]} 20. Ne5 {[%emt 0:04:10]} Bd6 {[%emt 0:15:56]} 21. Rfe1 {[%emt 0:01:41]} Rac8 {[%emt 0:09:45]} 22. Bd3 {[%emt 0:05:46]} Bxe5 {[%emt 0:01:38]} 23. dxe5 {[%emt 0:00:11]} Qxe5 {[%emt 0:00:06]} 24. a4 {[%emt 0:01:13]} dxe4 {[%emt 0:01:16]} 25. axb5 {[%emt 0:00:41]} Qd5 {[%emt 0:00:53]} 26. Bxe4 {[%emt 0:00:20]} Bxe4 {[%emt 0:00:01]} 27. Qxe4 {[%emt 0:00:03]} Qxb5 {[%emt 0:01:18]} 28. Qe2 {[%emt 0:00:37]} Rc4 {[%emt 0:02:19]} 29. b3 {[%emt 0:02:21]} Qxb3 {[%emt 0:01:27]} 30. Rxa6 {[%emt 0:00:15]} Rc3 {[%emt 0:00:38]} 31. h4 {[%emt 0:01:26]} Rh3 {[%emt 0:00:16]} 32. Kg2 {[%emt 0:04:36]} Rxh4 {[%emt 0:00:11]} 33. f3 {[%emt 0:00:21]} Qb8 {[%emt 0:04:38]} 34. Qe5 {[%emt 0:00:02]} Qxe5 {[%emt 0:00:44]} 35. Rxe5 {[%emt 0:00:09]} Rc8 {[%emt 0:01:34]} 36. Re2 {[%emt 0:02:13]} Rc1 {[%emt 0:01:23]} 37. Ra8+ {[%emt 0:00:38]} Kh7 {[%emt 0:00:08]} 38. Ra7 {[%emt 0:00:18]} Kg6 {[%emt 0:00:11]} 39. Rb2 {[%emt 0:00:47]} h5 {[%emt 0:01:51]} 40. Rbb7 {[%emt 0:02:05]} hxg4 {[%emt 0:01:47]} 41. Rxf7 {[%emt 0:01:36]} gxf3+ {[%emt 0:00:05]} 42. Kg3 {[%emt 0:01:04]} Rh7 {[%emt 0:02:03]} 43. Rxf3 {[%emt 0:00:08]} Rc5 {[%emt 0:00:31]} 44. Re7 {[%emt 0:01:01]} Rg5+ {[%emt 0:00:43]} 45. Kf2 {[%emt 0:00:19]} Rh2+ {[%emt 0:00:02]} 46. Kf1 {[%emt 0:01:04]} e5 {[%emt 0:00:57]} 47. Re6+ {[%emt 0:00:22]} Kh7 {[%emt 0:00:40]} 48. Re3 {[%emt 0:00:35]} Rf5+ {[%emt 0:00:10]} 49. Ke1 {[%emt 0:00:23]} Rhh5 {[%emt 0:00:23]} 50. Kd2 {[%emt 0:00:11]} Kg8 {[%emt 0:00:35]} 51. Kd3 {[%emt 0:01:37]} Kf7 {[%emt 0:00:11]} 52. Rc6 {[%emt 0:00:34]} Rh4 {[%emt 0:01:06]} 53. Rg3 {[%emt 0:01:11]} g5 {[%emt 0:00:27]} 54. Rc7+ {[%emt 0:00:34]} Ke6 {[%emt 0:00:34]} 55. Rc6+ {[%emt 0:00:21]} Kd5 {[%emt 0:00:02]} 56. Rg6 {[%emt 0:00:10]} Rh5 {[%emt 0:00:25]} 57. Ke3 {[%emt 0:00:26]} Rh4 {[%emt 0:01:22]} 58. R6xg5 {[%emt 0:00:25]} Rxg5 {[%emt 0:00:17]} 59. Rxg5 {[%emt 0:00:06]} Rh3+ {[%emt 0:00:01]} 60. Ke2 {[%emt 0:01:00]} Kd4 {[%emt 0:00:02]} 61. Rg2 {[%emt 0:01:13]} e4 {[%emt 0:00:29]} 62. Kd2 {[%emt 0:00:39]} Ra3 {[%emt 0:00:13]} 63. Rg7 {[%emt 0:00:59]} Ra2+ {[%emt 0:00:05]} 64. Kd1 {[%emt 0:00:06]} Kd3 {[%emt 0:00:17]} 65. Rd7+ {[%emt 0:00:07]} Ke3 {[%emt 0:00:04]} 66. Rf7 {[%emt 0:00:34]} Ra1+ {[%emt 0:00:22]} 67. Kc2 {[%emt 0:00:07]} Ke2 {[%emt 0:00:04]} 68. Rf4 {[%emt 0:01:17]} e3 {[%emt 0:00:10]} 69. Rf6 {[%emt 0:00:41]} Ra2+ {[%emt 0:01:41]} 70. Kc3 {[%emt 0:01:01]} Ra3+ {[%emt 0:00:24]} 71. Kc2 {[%emt 0:00:09]} Ra8 {[%emt 0:00:41]} 72. Rc6 {[%emt 0:00:50]} Rd8 {[%emt 0:00:04]} 73. Rc7 {[%emt 0:00:27]} Ke1 {[%emt 0:01:29]} 74. Rc6 {[%emt 0:01:26]} e2 {[%emt 0:00:36]} 75. Rc7 {[%emt 0:02:29]} Rd2+ {[%emt 0:00:47]} 76. Kc1 {[%emt 0:00:06]} Rd1+ {[%emt 0:00:18]} 77. Kc2 {[%emt 0:00:05]} Kf2 {[%emt 0:00:17]} 0-1

[Event "Ural District-ch Women 2020"]
[Site "Chelyabinsk"]
[Date "2020.10.04"]
[Round "8.4"]
[White "Filippova, Margarita"]
[Black "Stroganova, Karina"]
[Result "1-0"]
[ECO "A41"]
[WhiteElo "1931"]
[BlackElo "1825"]
[Annotator "ChessBase"]
[PlyCount "73"]
[EventDate "2020.10.01"]
[EventType "swiss"]
[EventCountry "RUS"]
[SourceTitle "playchess.com"]
[Source "ChessBase"]
[SourceQuality "1"]
[TimeControl "5400+30"]

1. d4 {[%emt 0:00:00]} d6 {[%emt 0:04:02]} 2. c4 {[%emt 0:00:09]} f5 {[%emt 0:00:30]} 3. g3 {[%emt 0:00:19]} Nf6 {[%emt 0:00:12]} 4. Bg2 {[%emt 0:00:05]} g6 {[%emt 0:00:13]} 5. Nc3 {[%emt 0:00:37]} Bg7 {[%emt 0:00:16]} 6. Nh3 {[%emt 0:00:11]} O-O {[%emt 0:00:50]} 7. d5 {[%emt 0:00:18]} a5 {[%emt 0:07:17]} 8. Nf4 {[%emt 0:00:30]} Na6 {[%emt 0:00:32]} 9. h4 {[%emt 0:01:08]} Nc5 {[%emt 0:01:15]} 10. h5 {[%emt 0:00:40]} g5 {[%emt 0:10:03]} 11. h6 {[%emt 0:02:21]} Bh8 {[%emt 0:00:13]} 12. Nh5 {[%emt 0:06:40]} g4 {[%emt 0:03:57]} 13. Be3 {[%emt 0:07:06]} e5 {[%emt 0:12:23]} 14. dxe6 {[%emt 0:01:32]} Bxe6 {[%emt 0:00:33]} 15. Nd5 {[%emt 0:04:38]} Nce4 {[%emt 0:02:19]} 16. Bd4 {[%emt 0:08:10]} c6 {[%emt 0:05:33]} 17. Bxe4 {[%emt 0:04:35]} cxd5 {[%emt 0:00:28]} 18. Bxd5 {[%emt 0:02:31]} Bxd5 {[%emt 0:10:32]} 19. Bxf6 {[%emt 0:01:19]} Bxf6 {[%emt 0:00:21]} 20. Qxd5+ {[%emt 0:00:06]} Rf7 {[%emt 0:02:18]} 21. Kf1 {[%emt 0:01:28]} Be5 {[%emt 0:06:27]} 22. Rd1 {[%emt 0:02:57]} Qg5 {[%emt 0:03:08]} 23. c5 {[%emt 0:05:04]} Rd8 {[%emt 0:06:19]} 24. Kg2 {[%emt 0:01:49]} f4 {[%emt 0:01:40]} 25. gxf4 {[%emt 0:04:54]} Bxf4 {[%emt 0:01:08]} 26. cxd6 {[%emt 0:04:19]} Qxd5+ {[%emt 0:07:13]} 27. Rxd5 {[%emt 0:00:06]} Bxh6 {[%emt 0:04:07]} 28. Rh4 {[%emt 0:01:19]} Kh8 {[%emt 0:01:50]} 29. Rxg4 {[%emt 0:00:20]} Bf8 {[%emt 0:00:33]} 30. d7 {[%emt 0:02:11]} b6 {[%emt 0:04:54]} 31. Rf4 {[%emt 0:03:01]} Rxf4 {[%emt 0:00:54]} 32. Nxf4 {[%emt 0:00:05]} Be7 {[%emt 0:00:09]} 33. Ne6 {[%emt 0:01:06]} Rg8+ {[%emt 0:00:07]} 34. Kf3 {[%emt 0:00:29]} Bd8 {[%emt 0:00:16]} 35. e4 {[%emt 0:00:28]} h6 {[%emt 0:00:14]} 36. e5 {[%emt 0:00:19]} h5 {[%emt 0:01:52]} 37. Nxd8 {[%emt 0:00:09]} 1-0

[Event "Ural District-ch Women 2020"]
[Site "Chelyabinsk"]
[Date "2020.10.04"]
[Round "8.5"]
[White "Matsenko, Elena"]
[Black "Nasybullina, Dayana"]
[Result "1-0"]
[ECO "B40"]
[WhiteElo "1811"]
[BlackElo "1787"]
[Annotator "NA"]
[PlyCount "67"]
[EventDate "2020.10.01"]
[EventType "swiss"]
[EventCountry "RUS"]
[SourceTitle "playchess.com"]
[Source "ChessBase"]
[SourceQuality "1"]
[TimeControl "5400+30"]

1. e4 {[%emt 0:00:00]} c5 {[%emt 0:01:15]} 2. Nf3 {[%emt 0:00:00]} e6 {[%emt 0:00:07]} 3. d4 {[%emt 0:00:00]} cxd4 {[%emt 0:00:14]} 4. Nxd4 {[%emt 0:00:00]} Nf6 {[%emt 0:00:06]} 5. Bd3 {[%emt 0:00:17]} Nc6 {[%emt 0:00:16]} 6. Nxc6 {[%emt 0:00:09]} dxc6 {[%emt 0:00:35]} 7. O-O {[%emt 0:00:11]} e5 {[%emt 0:00:17]} 8. Nd2 {[%emt 0:00:37]} Bc5 {[%emt 0:04:19]} 9. h3 {[%emt 0:01:26]} h6 {[%emt 0:01:26]} 10. Nc4 {[%emt 0:00:10]} Qe7 {[%emt 0:01:16]} 11. a4 {[%emt 0:00:18]} O-O {[%emt 0:00:25]} 12. Qe2 {[%emt 0:00:10]} b6 {[%emt 0:09:03]} 13. Bd2 {[%emt 0:03:04]} Rd8 {[%emt 0:03:50]} 14. Rab1 {[%emt 0:04:55]} a5 {[%emt 0:03:30]} 15. Bc3 {[%emt 0:02:29]} Nd7 {[%emt 0:05:58]} 16. Kh1 {[%emt 0:05:26]} Bb4 {[%emt 0:04:01]} 17. Bxb4 {[%emt 0:01:02]} Qxb4 {[%emt 0:02:18]} 18. b3 {[%emt 0:00:43]} Rb8 {[%emt 0:11:35]} 19. f4 {[%emt 0:04:39]} Qc3 {[%emt 0:05:43]} 20. Qh5 {[%emt 0:05:56]} exf4 {[%emt 0:10:29]} 21. Rxf4 {[%emt 0:00:53]} f6 {[%emt 0:02:00]} 22. Rbf1 {[%emt 0:11:51]} b5 {[%emt 0:15:35]} 23. axb5 {[%emt 0:04:07]} Rxb5 {[%emt 0:01:12]} 24. e5 {[%emt 0:06:26]} Nxe5 {[%emt 0:02:54]} 25. Nxe5 {[%emt 0:00:06]} Rxe5 {[%emt 0:00:42]} 26. Qg6 {[%emt 0:02:09]} f5 {[%emt 0:03:17]} 27. Rc4 {[%emt 0:17:52]} Qd2 {[%emt 0:01:07]} 28. Qxc6 {[%emt 0:01:08]} Re7 {[%emt 0:09:55]} 29. Qg6 {[%emt 0:04:52]} Re1 {[%emt 0:00:29]} 30. Rcf4 {[%emt 0:01:47]} Rf8 {[%emt 0:00:27]} 31. Qd6 {[%emt 0:01:58]} Rxf1+ {[%emt 0:00:29]} 32. Rxf1 {[%emt 0:00:20]} Qg5 {[%emt 0:00:24]} 33. Bc4+ {[%emt 0:00:24]} Kh7 {[%emt 0:00:30]} 34. Qxf8 {[%emt 0:00:20]} 1-0

[Event "Ural District-ch Women 2020"]
[Site "Chelyabinsk"]
[Date "2020.10.05"]
[Round "9.1"]
[White "Mironenko, Galina"]
[Black "Semenova, Elena"]
[Result "1/2-1/2"]
[ECO "B91"]
[WhiteElo "2100"]
[BlackElo "2283"]
[Annotator "ChessBase"]
[PlyCount "89"]
[EventDate "2020.10.01"]
[EventType "swiss"]
[EventCountry "RUS"]
[SourceTitle "playchess.com"]
[Source "ChessBase"]
[SourceQuality "1"]
[TimeControl "5400+30"]

1. e4 {[%emt 0:00:00]} c5 {[%emt 0:00:00]} 2. Nf3 {[%emt 0:00:00]} d6 {[%emt 0:00:00]} 3. d4 {[%emt 0:00:00]} cxd4 {[%emt 0:00:00]} 4. Nxd4 {[%emt 0:00:00]} Nf6 {[%emt 0:00:00]} 5. Nc3 {[%emt 0:00:00]} a6 {[%emt 0:00:00]} 6. g3 {[%emt 0:00:20]} g6 {[%emt 0:00:16]} 7. Bg2 {[%emt 0:00:58]} Bg7 {[%emt 0:00:05]} 8. O-O {[%emt 0:02:50]} O-O {[%emt 0:00:13]} 9. a4 {[%emt 0:01:32]} Bd7 {[%emt 0:08:02]} 10. Re1 {[%emt 0:06:41]} Nc6 {[%emt 0:00:34]} 11. Nxc6 {[%emt 0:08:13]} bxc6 {[%emt 0:08:47]} 12. a5 {[%emt 0:06:41]} Ng4 {[%emt 0:11:40]} 13. h3 {[%emt 0:06:39]} Ne5 {[%emt 0:02:46]} 14. Qe2 {[%emt 0:01:32]} c5 {[%emt 0:01:41]} 15. Bd2 {[%emt 0:06:36]} Nc6 {[%emt 0:11:10]} 16. Na4 {[%emt 0:02:06]} Nd4 {[%emt 0:00:05]} 17. Qd1 {[%emt 0:02:18]} Be6 {[%emt 0:02:22]} 18. Bc3 {[%emt 0:05:13]} Rb8 {[%emt 0:06:31]} 19. e5 {[%emt 0:14:27]} dxe5 {[%emt 0:06:05]} 20. Nxc5 {[%emt 0:01:14]} Bd5 {[%emt 0:06:51]} 21. Nxa6 {[%emt 0:09:21]} Bxg2 {[%emt 0:01:24]} 22. Kxg2 {[%emt 0:00:49]} Rb5 {[%emt 0:01:26]} 23. Nb4 {[%emt 0:02:31]} Rxa5 {[%emt 0:07:51]} 24. Rxa5 {[%emt 0:02:55]} Qxa5 {[%emt 0:00:06]} 25. Bxd4 {[%emt 0:06:49]} exd4 {[%emt 0:01:09]} 26. Nc6 {[%emt 0:00:55]} Qa8 {[%emt 0:04:35]} 27. Qf3 {[%emt 0:00:12]} e6 {[%emt 0:00:11]} 28. c3 {[%emt 0:06:20]} dxc3 {[%emt 0:03:25]} 29. bxc3 {[%emt 0:00:08]} Qa3 {[%emt 0:00:33]} 30. Nd4 {[%emt 0:04:22]} Rc8 {[%emt 0:02:49]} 31. Re3 {[%emt 0:00:20]} Qb2 {[%emt 0:01:55]} 32. Ne2 {[%emt 0:01:08]} h5 {[%emt 0:00:10]} 33. Rd3 {[%emt 0:00:53]} Qb5 {[%emt 0:01:46]} 34. Nd4 {[%emt 0:00:50]} Qa4 {[%emt 0:02:25]} 35. Qb7 {[%emt 0:01:02]} Qc4 {[%emt 0:01:25]} 36. Rf3 {[%emt 0:00:45]} Rc7 {[%emt 0:01:30]} 37. Qb8+ {[%emt 0:00:20]} Kh7 {[%emt 0:00:30]} 38. Qe8 {[%emt 0:01:06]} Bxd4 {[%emt 0:06:54]} 39. cxd4 {[%emt 0:00:06]} Kg7 {[%emt 0:00:20]} 40. Qd8 {[%emt 0:00:19]} Rb7 {[%emt 0:01:09]} 41. Qf6+ {[%emt 0:00:24]} Kh7 {[%emt 0:00:02]} 42. g4 {[%emt 0:01:22]} Qd5 {[%emt 0:00:15]} 43. Qe5 {[%emt 0:00:27]} Rd7 {[%emt 0:01:36]} 44. Qxd5 {[%emt 0:00:15]} exd5 {[%emt 0:00:10]} 45. g5 {[%emt 0:00:36]} 1/2-1/2

[Event "Ural District-ch Women 2020"]
[Site "Chelyabinsk"]
[Date "2020.10.05"]
[Round "9.2"]
[White "Mukhina, Jana"]
[Black "Filippova, Margarita"]
[Result "1/2-1/2"]
[ECO "C54"]
[WhiteElo "2068"]
[BlackElo "1931"]
[Annotator "ChessBase"]
[PlyCount "37"]
[EventDate "2020.10.01"]
[EventType "swiss"]
[EventCountry "RUS"]
[SourceTitle "playchess.com"]
[Source "ChessBase"]
[SourceQuality "1"]
[TimeControl "5400+30"]

1. e4 {[%emt 0:00:00]} e5 {[%emt 0:00:00]} 2. Nf3 {[%emt 0:00:00]} Nc6 {[%emt 0:00:00]} 3. Bc4 {[%emt 0:01:23]} Bc5 {[%emt 0:00:00]} 4. c3 {[%emt 0:00:52]} Nf6 {[%emt 0:02:27]} 5. d4 {[%emt 0:02:14]} exd4 {[%emt 0:00:22]} 6. cxd4 {[%emt 0:00:18]} Bb4+ {[%emt 0:00:04]} 7. Bd2 {[%emt 0:06:59]} Nxe4 {[%emt 0:02:17]} 8. Bxb4 {[%emt 0:00:49]} Nxb4 {[%emt 0:00:05]} 9. Bxf7+ {[%emt 0:00:52]} Kxf7 {[%emt 0:01:10]} 10. Qb3+ {[%emt 0:00:09]} d5 {[%emt 0:03:01]} 11. Ne5+ {[%emt 0:03:30]} Ke8 {[%emt 0:07:18]} 12. Qxb4 {[%emt 0:03:46]} Qg5 {[%emt 0:01:01]} 13. Nd2 {[%emt 0:08:07]} Nxd2 {[%emt 0:11:47]} 14. Qxd2 {[%emt 0:00:51]} Qxd2+ {[%emt 0:00:16]} 15. Kxd2 {[%emt 0:00:06]} Rf8 {[%emt 0:00:23]} 16. f3 {[%emt 0:01:48]} a5 {[%emt 0:02:56]} 17. Rac1 {[%emt 0:03:04]} Kd8 {[%emt 0:00:42]} 18. Rhe1 {[%emt 0:00:34]} Ra6 {[%emt 0:01:14]} 19. Rc5 {[%emt 0:00:09]} 1/2-1/2

[Event "Ural District-ch Women 2020"]
[Site "Chelyabinsk"]
[Date "2020.10.05"]
[Round "9.3"]
[White "Chigaeva, Anastasia"]
[Black "Matsenko, Elena"]
[Result "1-0"]
[ECO "A05"]
[WhiteElo "2175"]
[BlackElo "1811"]
[Annotator "ChessBase"]
[PlyCount "105"]
[EventDate "2020.10.01"]
[EventType "swiss"]
[EventCountry "RUS"]
[SourceTitle "playchess.com"]
[Source "ChessBase"]
[SourceQuality "1"]
[TimeControl "5400+30"]

1. Nf3 {[%emt 0:00:00]} Nf6 {[%emt 0:00:00]} 2. g3 {[%emt 0:00:00]} b5 {[%emt 0:00:00]} 3. Bg2 {[%emt 0:00:49]} Bb7 {[%emt 0:00:03]} 4. O-O {[%emt 0:00:45]} e6 {[%emt 0:00:18]} 5. d3 {[%emt 0:01:23]} d5 {[%emt 0:00:19]} 6. Nbd2 {[%emt 0:02:50]} Be7 {[%emt 0:00:20]} 7. Qe1 {[%emt 0:06:17]} Nbd7 {[%emt 0:01:05]} 8. e4 {[%emt 0:05:33]} dxe4 {[%emt 0:01:21]} 9. dxe4 {[%emt 0:01:01]} e5 {[%emt 0:00:22]} 10. Qe2 {[%emt 0:03:14]} a6 {[%emt 0:01:16]} 11. b3 {[%emt 0:01:54]} c5 {[%emt 0:01:18]} 12. Bb2 {[%emt 0:01:43]} Qc7 {[%emt 0:00:06]} 13. a4 {[%emt 0:03:58]} O-O {[%emt 0:05:30]} 14. Nh4 {[%emt 0:06:54]} Rfb8 {[%emt 0:03:09]} 15. Nf5 {[%emt 0:02:56]} Bf8 {[%emt 0:00:11]} 16. Rfd1 {[%emt 0:02:09]} Bc6 {[%emt 0:01:48]} 17. axb5 {[%emt 0:11:40]} axb5 {[%emt 0:00:13]} 18. Ne3 {[%emt 0:05:56]} Qb7 {[%emt 0:09:38]} 19. Qf3 {[%emt 0:02:08]} Rxa1 {[%emt 0:01:30]} 20. Rxa1 {[%emt 0:04:24]} Ra8 {[%emt 0:05:04]} 21. Nd5 {[%emt 0:00:57]} Rxa1+ {[%emt 0:02:49]} 22. Bxa1 {[%emt 0:02:06]} Bd6 {[%emt 0:01:36]} 23. c4 {[%emt 0:05:30]} Qa6 {[%emt 0:05:31]} 24. Qd1 {[%emt 0:04:07]} h6 {[%emt 0:03:03]} 25. Bb2 {[%emt 0:03:03]} Qa2 {[%emt 0:04:05]} 26. Qa1 {[%emt 0:00:13]} Qxa1+ {[%emt 0:00:09]} 27. Bxa1 {[%emt 0:00:01]} b4 {[%emt 0:00:21]} 28. Nf1 {[%emt 0:02:08]} Nxd5 {[%emt 0:04:22]} 29. exd5 {[%emt 0:01:49]} Bb7 {[%emt 0:00:05]} 30. Ne3 {[%emt 0:02:11]} g6 {[%emt 0:00:33]} 31. g4 {[%emt 0:01:01]} Nf6 {[%emt 0:04:07]} 32. h4 {[%emt 0:01:57]} Bc8 {[%emt 0:00:43]} 33. Bf3 {[%emt 0:01:19]} Kf8 {[%emt 0:00:49]} 34. Kg2 {[%emt 0:01:08]} Ke7 {[%emt 0:01:26]} 35. Bb2 {[%emt 0:01:09]} Bd7 {[%emt 0:03:44]} 36. Bd1 {[%emt 0:02:43]} Bc8 {[%emt 0:03:26]} 37. f3 {[%emt 0:00:22]} Bd7 {[%emt 0:00:42]} 38. Bc2 {[%emt 0:00:27]} Be8 {[%emt 0:06:25]} 39. Nd1 {[%emt 0:00:23]} Bd7 {[%emt 0:01:47]} 40. Bc1 {[%emt 0:01:47]} Ng8 {[%emt 0:00:19]} 41. Nf2 {[%emt 0:03:32]} f5 {[%emt 0:04:40]} 42. h5 {[%emt 0:02:15]} fxg4 {[%emt 0:01:31]} 43. Bxg6 {[%emt 0:00:54]} gxf3+ {[%emt 0:00:13]} 44. Kxf3 {[%emt 0:00:08]} Be8 {[%emt 0:00:45]} 45. Bxe8 {[%emt 0:01:07]} Kxe8 {[%emt 0:00:06]} 46. Ne4 {[%emt 0:00:13]} Bf8 {[%emt 0:03:28]} 47. Be3 {[%emt 0:00:45]} Kf7 {[%emt 0:03:01]} 48. Nxc5 {[%emt 0:01:17]} Nf6 {[%emt 0:00:15]} 49. Ne6 {[%emt 0:00:40]} e4+ {[%emt 0:01:03]} 50. Kf4 {[%emt 0:02:16]} Nxh5+ {[%emt 0:01:20]} 51. Kxe4 {[%emt 0:00:15]} Ng3+ {[%emt 0:01:27]} 52. Kf3 {[%emt 0:00:48]} Nf5 {[%emt 0:00:10]} 53. Nxf8 {[%emt 0:00:16]} 1-0

[Event "Ural District-ch Women 2020"]
[Site "Chelyabinsk"]
[Date "2020.10.05"]
[Round "9.4"]
[White "Shnayder, Violetta"]
[Black "Toledo Flores, Marianna"]
[Result "0-1"]
[ECO "B23"]
[WhiteElo "1923"]
[BlackElo "1579"]
[Annotator "ChessBase"]
[PlyCount "47"]
[EventDate "2020.10.01"]
[EventType "swiss"]
[EventCountry "RUS"]
[SourceTitle "playchess.com"]
[Source "ChessBase"]
[SourceQuality "1"]
[TimeControl "5400+30"]

1. e4 {[%emt 0:00:00]} c5 {[%emt 0:00:00]} 2. Nc3 {[%emt 0:00:00]} a6 {[%emt 0:00:00]} 3. f4 {[%emt 0:00:27]} e6 {[%emt 0:00:17]} 4. Nf3 {[%emt 0:00:23]} b5 {[%emt 0:00:14]} 5. d4 {[%emt 0:00:25]} cxd4 {[%emt 0:00:11]} 6. Qxd4 {[%emt 0:00:11]} Nc6 {[%emt 0:00:41]} 7. Qf2 {[%emt 0:00:20]} Bb7 {[%emt 0:01:06]} 8. Bd3 {[%emt 0:00:35]} Nf6 {[%emt 0:06:16]} 9. h3 {[%emt 0:00:56]} d5 {[%emt 0:03:15]} 10. e5 {[%emt 0:07:10]} Nd7 {[%emt 0:00:55]} 11. Be3 {[%emt 0:00:33]} Rc8 {[%emt 0:01:55]} 12. O-O {[%emt 0:03:46]} Be7 {[%emt 0:07:53]} 13. Rae1 {[%emt 0:11:06]} g6 {[%emt 0:04:30]} 14. f5 {[%emt 0:18:04]} Ncxe5 {[%emt 0:10:12]} 15. fxe6 {[%emt 0:04:06]} fxe6 {[%emt 0:11:15]} 16. Nxe5 {[%emt 0:08:46]} Nxe5 {[%emt 0:00:13]} 17. Bb6 {[%emt 0:08:20]} Qd6 {[%emt 0:03:34]} 18. Rxe5 {[%emt 0:05:28]} Qxe5 {[%emt 0:03:10]} 19. Re1 {[%emt 0:12:50]} Qd6 {[%emt 0:01:35]} 20. Bd4 {[%emt 0:01:00]} Rf8 {[%emt 0:00:35]} 21. Qe2 {[%emt 0:00:54]} Kd7 {[%emt 0:03:20]} 22. b4 {[%emt 0:00:16]} Bd8 {[%emt 0:05:39]} 23. Qe3 {[%emt 0:04:05]} Bc7 {[%emt 0:00:16]} 24. Qe2 0-1